bitfinex/quotes_ETHUSD_20260227
["timestamp","ask_amount","ask_price","bid_price","bid_amount"]
[1772203524334,12.949952,1948.1,1947.6,0.0022]
[1772203524845,1.28336755,1948.0,1947.6,0.0022]
[1772203525046,1.28336755,1948.0,1947.5,0.0011]
[1772203525215,1.28336755,1948.0,1947.5,0.0022]
[1772203525550,0.85880685,1947.9,1947.4,0.0011]
[1772203525845,0.85880685,1947.7,1947.4,0.0011]
[1772203526047,3.93116496,1947.9,1947.4,0.0033]
[1772203526048,1.228,1947.8,1947.4,0.0033]
[1772203526917,2.14214725,1948.1,1947.4,0.0033]
[1772203527118,2.14214725,1948.1,1947.5,0.0022]
[1772203527653,6.027095,1948.0,1947.5,0.0022]
[1772203528152,5.13282196,1948.3,1947.5,0.0022]
[1772203528358,6.50111,1948.2,1947.5,0.0022]
[1772203528950,1.28330167,1948.1,1947.5,0.0022]
[1772203529679,1.28330167,1948.1,1947.0,0.00263886]
[1772203529680,0.85880685,1947.9,1947.0,0.00263886]
[1772203529889,0.85880685,1947.8,1947.0,1.28666487]
[1772203530180,3.751957,1947.9,1947.0,1.28666075]
[1772203530758,0.85880685,1947.9,1947.0,1.2866634]
[1772203530966,0.85880685,1947.9,1947.0,1.28665739]
[1772203531171,1.28349933,1947.8,1947.0,0.00263886]
[1772203531480,5.13332458,1948.1,1947.0,1.90280061]
[1772203531633,1.28327932,1948.2,1947.1,0.89116175]
[1772203531834,6.758639,1948.2,1947.1,0.89116175]
[1772203532962,1.28321687,1948.3,1947.2,1.90016175]
[1772203532963,1.28318722,1948.3,1947.2,1.90016175]
[1772203533167,5.13244295,1948.4,1947.2,1.90016175]
[1772203533168,5.13244295,1948.4,1947.3,1.28382889]
[1772203533664,0.85880685,1948.2,1947.1,5.13577181]
[1772203533875,0.85880685,1948.1,1947.1,1.28396076]
[1772203534036,15.093827,1948.4,1947.2,0.89116175]
[1772203534240,5.98993897,1948.9,1947.5,0.89116175]
[1772203534467,0.85880685,1948.8,1948.0,15.093827]
[1772203534839,5.13113212,1948.9,1947.5,15.093827]
[1772203534840,0.85880685,1948.4,1947.5,15.093827]
[1772203535040,1.28297239,1948.6,1947.8,1.28349933]
[1772203535445,1.28297239,1948.6,1947.4,2.29269704]
[1772203535446,2.14177924,1948.6,1947.4,2.29269704]
[1772203535646,0.85880685,1948.5,1947.5,5.13466512]
[1772203535965,0.85880685,1948.5,1947.5,1.28369704]
[1772203536476,0.85880685,1948.5,1947.6,15.093827]
[1772203537041,1.28310408,1948.4,1947.6,15.093827]
[1772203537240,0.85880685,1948.2,1947.5,1.28369355]
[1772203537552,1.232,1948.3,1947.5,1.28369355]
[1772203537752,1.28310408,1948.4,1947.6,15.093827]
[1772203537942,5.13165833,1948.7,1947.8,15.093827]
[1772203537943,1.28297124,1948.7,1947.8,15.093827]
[1772203538271,2.14177809,1948.7,1947.9,1.011]
[1772203538444,0.88488813,1948.6,1947.8,1.011]
[1772203538649,0.88488813,1948.6,1947.8,15.093827]
[1772203539398,0.88488813,1948.5,1947.2,0.87914965]
[1772203539548,1.231,1948.7,1947.2,15.094927]
[1772203539549,23.603654,1948.2,1947.2,15.094927]
[1772203539744,2.11588813,1948.1,1947.2,16.37881765]
[1772203540363,2.11588813,1948.1,1947.2,15.094927]
[1772203540664,0.87818893,1948.0,1947.2,0.0011]
[1772203540863,0.87818893,1948.0,1947.2,1.28495538]
[1772203541271,0.87818893,1948.0,1947.2,0.0011]
[1772203541272,1.28343344,1947.9,1947.2,0.0011]
[1772203541673,2.16162237,1947.9,1947.2,0.0011]
[1772203541877,2.16162237,1947.9,1947.1,1.013]
[1772203541878,17.256215,1947.7,1947.0,0.00263886]
[1772203542061,0.87818893,1947.6,1947.0,0.00263886]
[1772203542878,1.28343344,1947.9,1947.0,1.28665824]
[1772203542879,2.16162237,1947.9,1947.0,1.28665824]
[1772203543267,0.87818893,1947.8,1947.0,0.00263886]
[1772203543955,1.28343344,1947.9,1947.0,0.89027587]
[1772203544156,1.2834093,1948.0,1947.1,1.012]
[1772203544546,2.16159823,1948.0,1947.0,0.89027587]
[1772203544747,0.87818893,1947.9,1947.0,0.00263886]
[1772203545483,2.16168826,1947.8,1947.0,0.00263886]
[1772203545884,5.1336002,1948.0,1947.0,0.00263886]
[1772203546074,1.28336755,1948.0,1947.0,0.89027587]
[1772203546269,1.28334878,1948.1,1947.0,0.89027587]
[1772203546576,1.28334878,1948.1,1947.1,1.012]
[1772203546780,1.28327586,1948.2,1947.2,0.88763701]
[1772203547352,2.16146479,1948.2,1947.3,1.28382889]
[1772203547577,0.87818893,1948.0,1947.1,0.0011]
[1772203547783,0.87818893,1947.9,1947.1,1.28505984]
[1772203548080,0.87818893,1947.9,1947.1,0.0011]
[1772203548381,0.87818893,1947.7,1947.1,0.0011]
[1772203549173,0.87818893,1947.7,1947.0,0.00263886]
[1772203549376,0.87818893,1947.3,1946.8,0.0011]
[1772203550165,2.51376296,1947.4,1946.8,0.0011]
[1772203550166,1.28376296,1947.4,1946.8,0.0011]
[1772203550482,5.13478818,1947.6,1946.8,0.0011]
[1772203550687,1.28363113,1947.6,1946.8,0.0011]
[1772203551390,2.16182006,1947.6,1946.8,0.0011]
[1772203551561,1.28363113,1947.6,1946.8,0.0011]
[1772203551968,0.87818893,1947.5,1946.8,0.0011]
[1772203552268,1.28363113,1947.6,1946.8,0.0011]
[1772203552576,1.28363113,1947.6,1946.0,1.28621837]
[1772203552577,0.87818893,1947.2,1946.0,1.28621837]
[1772203552910,17.975585,1947.3,1946.1,0.0011]
[1772203552911,0.87818893,1946.8,1946.1,0.0011]
[1772203553362,1.28435653,1946.5,1946.0,0.00153886]
[1772203553678,2.16254546,1946.5,1946.0,0.00263886]
[1772203553883,2.16254546,1946.5,1946.0,0.00153886]
[1772203553884,0.87818893,1946.3,1946.0,0.00153886]
[1772203554181,0.87818893,1946.3,1945.6,0.003]
[1772203554354,0.87818893,1946.3,1945.7,0.0011]
[1772203554880,0.87818893,1946.3,1945.6,0.003]
[1772203555083,19.176089,1946.0,1944.7,5.14217628]
[1772203555393,0.87818893,1946.1,1944.7,5.14217628]
[1772203555394,1.28495065,1945.6,1945.1,0.0011]
[1772203555955,2.16313958,1945.6,1945.1,0.0011]
[1772203557277,1.28490762,1945.7,1945.1,0.0011]
[1772203557479,1.28448851,1946.3,1945.3,1.28514882]
[1772203557681,4.021414,1946.5,1945.4,0.88763701]
[1772203557876,0.87818893,1946.5,1945.4,1.89673701]
[1772203558076,0.87818893,1946.5,1945.4,0.0011]
[1772203558283,9.61193293,1946.4,1945.4,0.0011]
[1772203558581,0.87818893,1946.1,1945.1,1.28523414]
[1772203559292,4.019614,1946.2,1945.1,2.17287115]
[1772203559485,1.28462052,1946.1,1945.1,2.17287115]
[1772203559686,1.28460412,1946.2,1945.2,1.009]
[1772203559896,0.87818893,1945.8,1945.0,0.00153886]
[1772203560098,21.43184993,1945.6,1945.0,0.00153886]
[1772203560264,0.87818893,1945.6,1945.0,0.00153886]
[1772203560466,0.87818893,1946.0,1945.0,1.28685091]
[1772203560707,2.16266031,1946.4,1945.1,0.88763701]
[1772203560882,2.16266031,1946.4,1945.2,1.01]
[1772203561193,2.16266031,1946.4,1945.1,0.88763701]
[1772203561409,0.87818893,1946.2,1945.0,1.28795091]
[1772203561618,2.16276997,1946.2,1945.3,1.28514882]
[1772203561901,2.16276997,1946.2,1945.2,6.15159528]
[1772203561902,1.28458104,1946.2,1945.2,2.29616325]
[1772203562068,1.28458104,1946.2,1945.3,1.011]
[1772203562389,7.99102093,1946.4,1945.2,1.28516325]
[1772203562744,0.87818893,1946.6,1945.4,0.88763701]
[1772203562874,12.06724793,1946.4,1945.2,1.28516325]
[1772203563065,7.072799,1946.2,1945.3,1.012]
[1772203563264,3.812559,1946.6,1945.3,1.89963701]
[1772203563485,4.69074793,1946.6,1945.3,0.88763701]
[1772203563691,2.16261145,1946.4,1945.4,2.29707883]
[1772203563895,2.16261145,1946.4,1945.4,1.28507883]
[1772203564068,11.527349,1946.3,1945.4,1.013]
[1772203564270,5.591638,1946.3,1945.4,1.013]
[1772203564870,0.87818893,1946.2,1945.0,1.28795487]
[1772203565073,1.28442252,1946.4,1945.1,1.012]
[1772203565391,1.28439798,1946.5,1945.2,0.88763701]
[1772203565595,0.87972779,1947.0,1945.4,0.88763701]
[1772203565924,0.87972779,1947.0,1945.6,0.88763701]
[1772203565925,1.28556852,1947.0,1945.6,0.88763701]
[1772203566078,1.28556852,1947.0,1945.8,0.88763701]
[1772203566280,0.00153886,1947.0,1945.8,0.88763701]
[1772203566693,1.28557632,1947.0,1945.8,0.88763701]
[1772203567195,1.28557632,1947.0,1945.9,1.013]
[1772203567396,1.28557632,1947.0,1945.9,0.88763701]
[1772203567614,0.00153886,1947.0,1946.0,2.29768653]
[1772203568198,4.412061,1946.9,1945.6,5.13978632]
[1772203568423,0.00153886,1947.0,1945.6,5.13978632]
[1772203568599,0.00153886,1947.0,1945.8,0.88763701]
[1772203569023,0.00153886,1947.0,1945.9,1.013]
[1772203569324,0.00153886,1947.0,1945.8,0.88763701]
[1772203569519,0.00153886,1947.0,1945.9,1.013]
[1772203569729,0.00153886,1947.0,1946.0,1.28468653]
[1772203569892,0.00153886,1947.0,1946.1,0.88763701]
[1772203570397,0.00153886,1947.0,1946.2,0.83729344]
[1772203570600,0.80541631,1948.1,1946.2,0.83729344]
[1772203570903,1.28450243,1947.8,1946.4,0.83729344]
[1772203571298,1.28450243,1947.8,1946.5,1.012]
[1772203571504,1.28451609,1947.8,1946.6,0.83729344]
[1772203571703,0.001,1947.8,1946.7,1.28422458]
[1772203571911,0.001,1947.8,1946.1,1.28455451]
[1772203571912,0.80541631,1947.5,1946.1,1.28455451]
[1772203572196,0.001,1947.8,1946.2,0.83729344]
[1772203572397,0.80641631,1947.8,1946.3,0.83729344]
[1772203572829,6.510668,1947.7,1946.5,0.83729344]
[1772203573024,4.0,1947.7,1946.5,0.83729344]
[1772203573325,0.001,1946.9,1946.5,0.83729344]
[1772203573527,0.001,1947.8,1946.5,0.83729344]
[1772203574047,0.001,1947.8,1946.7,0.83729344]
[1772203574331,3.96833,1947.7,1946.6,1.28429055]
[1772203574504,9.84093431,1947.5,1946.4,1.28442252]
[1772203574706,0.80641631,1947.8,1946.5,1.012]
[1772203575037,0.001,1947.8,1946.6,0.83729344]
[1772203575199,11.26282331,1947.7,1946.6,1.013]
[1772203575403,11.26282331,1947.7,1946.4,1.28442252]
[1772203575404,0.80541631,1947.7,1946.4,1.28442252]
[1772203575746,4.01931,1947.7,1946.6,0.83729344]
[1772203576033,1.28363113,1947.6,1946.7,1.28422458]
[1772203576403,1.28363113,1947.6,1946.7,2.29722458]
[1772203576830,5.30290692,1947.7,1946.7,2.29722458]
[1772203577134,1.28359692,1947.7,1946.7,3.13451802]
[1772203578104,5.1350425,1947.8,1946.8,0.83729344]
[1772203578105,0.001,1947.8,1946.8,0.83729344]
[1772203578733,0.001,1947.8,1946.9,1.014]
[1772203578929,0.001,1947.8,1947.0,1.85129344]
[1772203579110,0.001,1947.8,1947.1,1.85129344]
[1772203579309,0.001,1947.8,1947.1,0.83729344]
[1772203579524,0.00153886,1948.0,1947.3,0.83729344]
[1772203579707,0.001,1948.3,1947.4,0.83729344]
[1772203580027,0.001,1948.3,1947.0,0.8388323]
[1772203580226,0.80541631,1948.2,1947.1,1.015]
[1772203580427,0.80541631,1948.0,1947.1,1.015]
[1772203580633,0.001,1948.3,1947.2,0.83729344]
[1772203580938,0.00153886,1949.0,1947.6,0.83729344]
[1772203581114,0.00153886,1949.0,1947.8,0.83729344]
[1772203581317,2.08966773,1949.0,1947.4,0.83729344]
[1772203581517,2.08966773,1949.0,1947.6,0.83729344]
[1772203581722,2.08966773,1949.0,1947.8,0.83729344]
[1772203581723,0.00153886,1949.0,1947.8,0.83729344]
[1772203582120,0.00153886,1949.0,1948.0,0.83729344]
[1772203582336,0.00153886,1949.0,1948.1,1.016]
[1772203583042,0.00153886,1949.0,1948.1,1.85329344]
[1772203584125,0.00153886,1949.0,1948.2,2.12052924]
[1772203584813,0.00153886,1949.0,1947.9,1.28343344]
[1772203585216,13.803159,1948.9,1948.0,1.016]
[1772203585450,0.00153886,1949.0,1948.0,1.016]
[1772203585619,0.00153886,1949.0,1948.1,1.016]
[1772203586147,0.00153886,1949.0,1947.5,0.83729344]
[1772203586148,0.80541631,1948.8,1947.5,0.83729344]
[1772203586346,0.80541631,1948.8,1947.4,1.28376296]
[1772203586347,1.28381603,1948.9,1947.7,0.83729344]
[1772203586648,1.28381603,1948.9,1947.8,1.016]
[1772203587217,0.80541631,1948.8,1947.4,1.28376296]
[1772203587417,0.80541631,1948.6,1947.4,1.28376296]
[1772203587854,0.80541631,1948.6,1947.5,1.015]
[1772203588025,0.80541631,1948.6,1947.4,1.28376296]
[1772203588226,0.80541631,1948.6,1947.5,1.015]
[1772203588227,1.28303823,1948.5,1947.5,1.015]
[1772203588740,1.28382616,1948.9,1947.5,1.85229344]
[1772203589254,0.80541631,1948.7,1947.4,1.28376296]
[1772203589418,1.28382616,1948.9,1947.4,1.28376296]
[1772203589419,6.12788631,1948.4,1947.4,1.28376296]
[1772203589621,0.80541631,1948.4,1947.4,1.28376296]
[1772203590147,1.28316994,1948.3,1947.2,5.13549365]
[1772203590347,6.83988431,1948.2,1947.2,1.28389482]
[1772203590562,4.0,1948.1,1947.2,1.28389482]
[1772203590847,1.28315185,1948.4,1947.2,1.28389482]
[1772203591142,1.28315185,1948.4,1947.2,2.12118826]
[1772203591353,2.08856816,1948.4,1947.2,2.12118826]
[1772203591523,2.08856816,1948.4,1947.3,1.016]
[1772203591727,2.08856816,1948.4,1947.4,1.016]
[1772203592240,2.08856816,1948.4,1947.5,1.28369704]
[1772203592543,2.08856816,1948.4,1947.5,2.29969704]
[1772203592775,2.08856816,1948.4,1947.0,1.28549962]
[1772203592776,0.80541631,1948.3,1947.0,1.28549962]
[1772203592923,0.80541631,1948.2,1947.2,1.015]
[1772203593118,8.58114,1948.1,1947.2,1.015]
[1772203593320,0.80541631,1948.1,1947.2,1.015]
[1772203593954,1.28315185,1948.4,1947.3,0.83729344]
[1772203594320,1.28315185,1948.4,1947.4,1.28376296]
[1772203594527,5.19791308,1949.0,1947.5,0.83729344]
[1772203594528,0.80641631,1948.9,1947.5,0.83729344]
[1772203594747,2.08924497,1948.9,1947.5,0.83729344]
[1772203595120,12.442943,1948.8,1947.5,0.83729344]
[1772203595323,11.427832,1948.7,1947.6,1.015]
[1772203595525,0.80541631,1948.8,1947.6,1.015]
[1772203595726,7.741506,1948.7,1947.5,0.83729344]
[1772203595926,0.80541631,1948.6,1947.6,1.015]
[1772203596531,1.28303823,1948.5,1947.6,1.015]
[1772203596735,1.28303823,1948.5,1947.3,5.13505186]
[1772203596736,0.80541631,1948.4,1947.3,1.014]
[1772203596943,0.80541631,1948.4,1947.1,0.83729344]
[1772203597156,0.80541631,1948.2,1947.2,1.014]
[1772203597943,7.587258,1947.9,1947.0,0.00153886]
[1772203598140,1.237,1948.1,1947.0,0.00153886]
[1772203598141,0.80541631,1947.8,1947.0,0.00153886]
[1772203598334,0.80541631,1947.8,1947.0,1.28555042]
[1772203598664,1.28336755,1948.0,1947.3,0.0011]
[1772203599237,4.0,1948.3,1947.3,1.0151]
[1772203599669,2.06752113,1948.5,1947.3,1.0151]
[1772203599873,0.78345321,1948.3,1947.3,0.0011]
[1772203600168,0.76691377,1948.1,1947.3,0.0011]
[1772203600375,0.76691377,1948.0,1947.3,0.0011]
[1772203600665,2.0504131,1947.8,1947.0,0.00263886]
[1772203601058,0.76691377,1947.7,1947.0,0.00263886]
[1772203601864,1.28346657,1947.9,1947.0,0.00263886]
[1772203602866,2.05038034,1947.9,1947.0,0.00263886]
[1772203603074,0.76691377,1947.8,1947.0,0.00263886]
[1772203603449,0.76691377,1947.3,1946.8,0.0011]
[1772203603753,12.30071577,1947.0,1946.7,0.0011]
[1772203603955,14.354642,1946.9,1946.7,0.0011]
[1772203604170,14.354642,1946.9,1946.0,0.00153886]
[1772203604537,14.354642,1946.9,1946.0,1.28621172]
[1772203604538,4.0,1946.9,1946.0,1.28621172]
[1772203604942,4.0,1946.9,1946.0,0.00153886]
[1772203604943,1.2841521,1946.9,1946.0,0.00153886]
[1772203606060,2.05106587,1946.9,1946.0,0.00153886]
[1772203606557,0.76691377,1946.7,1946.0,0.00153886]
[1772203606763,1.237,1946.7,1946.0,0.00153886]
[1772203607067,1.28429055,1946.6,1946.0,0.00153886]
[1772203608149,1.28429055,1946.6,1945.3,1.28514342]
[1772203608150,0.76691377,1946.4,1945.3,1.28514342]
[1772203608660,0.76691377,1946.4,1945.2,5.14177638]
[1772203608661,14.97922277,1946.1,1945.2,0.0011]
[1772203608843,1.238,1946.0,1945.2,0.0011]
[1772203609196,13.30766355,1945.9,1945.2,0.0011]
[1772203609341,0.76691377,1945.7,1945.2,0.0011]
[1772203609848,5.187762,1945.6,1945.2,0.0011]
[1772203610278,0.76691377,1945.5,1944.2,0.156856]
[1772203610581,0.76691377,1945.5,1942.8,1.54716057]
[1772203610582,0.76691377,1944.9,1943.1,1.28660388]
[1772203610741,0.76691377,1944.7,1943.2,0.79821662]
[1772203611059,0.76691377,1944.7,1943.1,1.28660388]
[1772203611060,0.00153886,1945.0,1943.6,0.79821662]
[1772203611263,0.00153886,1945.0,1943.8,0.79821662]
[1772203611942,0.00153886,1945.0,1943.9,1.009]
[1772203612141,0.76845263,1946.0,1943.9,1.009]
[1772203612142,2.05314907,1946.0,1944.2,0.79821662]
[1772203612643,0.00153886,1946.0,1944.4,0.79821662]
[1772203612957,0.00153886,1946.0,1944.6,0.79821662]
[1772203613279,0.76691377,1945.4,1944.1,4.59814902]
[1772203613486,1.28488461,1945.7,1944.0,0.00153886]
[1772203613487,0.76691377,1945.2,1944.0,0.00153886]
[1772203613645,2.8515,1944.9,1944.0,0.00153886]
[1772203614050,6.745598,1944.9,1944.0,0.00153886]
[1772203614382,2.387773,1944.9,1944.0,1.28753887]
[1772203614750,1.199,1945.3,1944.0,1.28753887]
[1772203614963,7.936698,1945.2,1944.0,1.28753887]
[1772203615159,1.28541313,1944.9,1944.0,0.00153886]
[1772203615356,11.08478,1944.8,1944.0,0.00153886]
[1772203615570,7.965139,1944.7,1944.0,0.00153886]
[1772203615758,8.003052,1944.6,1944.0,0.00153886]
[1772203616248,11.227244,1944.6,1944.0,0.00153886]
[1772203616444,11.227244,1944.6,1943.0,0.00153886]
[1772203616445,10.16740377,1944.6,1943.3,5.14571975]
[1772203616678,0.76691377,1944.2,1943.1,1.28656578]
[1772203616989,11.14015377,1944.1,1943.0,0.00153886]
[1772203617176,1.28607438,1943.9,1943.0,0.00153886]
[1772203617980,9.87372,1943.8,1943.0,0.00153886]
[1772203618153,1.28607438,1943.9,1943.0,0.00153886]
[1772203618494,14.62069177,1943.8,1943.0,0.00153886]
[1772203618651,4.497939,1943.8,1943.0,0.00153886]
[1772203618848,1.2860561,1944.0,1943.0,0.00153886]
[1772203619078,4.080382,1943.9,1943.0,0.00153886]
[1772203619295,1.28609477,1943.9,1943.0,0.00153886]
[1772203619579,5.14387163,1944.1,1943.0,0.00153886]
[1772203619781,6.33124,1944.0,1943.0,1.01153886]
[1772203620354,0.76691377,1944.4,1943.0,0.00153886]
[1772203620581,1.244,1944.4,1943.1,1.01]
[1772203620799,1.28567755,1944.5,1943.3,0.79821662]
[1772203620979,7.57689,1944.4,1943.4,1.01]
[1772203621286,5.14260703,1944.6,1943.5,1.28633907]
[1772203621477,7.149093,1944.5,1943.5,1.28633907]
[1772203621790,7.67006877,1944.4,1943.0,0.00153886]
[1772203621975,1.246,1944.3,1943.2,0.79821662]
[1772203622287,5.14260703,1944.6,1943.2,0.79821662]
[1772203622288,4.80462,1944.5,1943.2,0.79821662]
[1772203622456,8.166352,1944.3,1943.1,2.29760388]
[1772203623171,1.28561143,1944.6,1943.3,2.08468808]
[1772203623481,1.2855954,1944.7,1943.4,0.79821662]
[1772203624153,7.66214,1944.7,1943.4,0.79821662]
[1772203624354,5.14186087,1944.9,1943.4,0.79821662]
[1772203624355,5.14166203,1944.9,1943.4,0.79821662]
[1772203624795,5.14166203,1944.9,1943.3,1.28647146]
[1772203624796,1.28692321,1945.0,1943.6,0.79821662]
[1772203624996,0.00153886,1945.0,1943.6,0.79821662]
[1772203625167,1.28688645,1945.0,1943.7,1.28620671]
[1772203625492,1.28688645,1945.0,1943.8,0.79821662]
[1772203625663,0.00153886,1945.0,1943.9,0.79821662]
[1772203626675,0.00153886,1945.0,1944.0,1.011]
[1772203626880,0.00153886,1945.0,1944.3,0.79821662]
[1772203627158,5.13905022,1945.9,1944.4,1.28574367]
[1772203627357,4.488658,1945.8,1944.4,2.08396029]
[1772203627577,5.13905022,1945.9,1944.5,0.79821662]
[1772203627775,9.926278,1945.8,1944.5,0.79821662]
[1772203627977,9.926278,1945.8,1944.4,1.28574367]
[1772203627978,0.76691377,1945.7,1944.4,1.28574367]
[1772203628287,0.76691377,1945.7,1944.4,2.29574367]
[1772203628588,0.76691377,1945.8,1944.5,0.79821662]
[1772203628792,3.411402,1945.7,1944.5,1.80821662]
[1772203629292,1.28492148,1945.7,1944.7,0.79821662]
[1772203629488,1.28475255,1945.9,1944.7,0.79821662]
[1772203630189,7.509766,1945.8,1944.8,1.01]
[1772203630357,7.509766,1945.8,1944.6,1.28561143]
[1772203630565,13.602524,1945.6,1944.4,5.14284726]
[1772203630763,13.332524,1945.5,1944.4,5.14284726]
[1772203631165,14.822915,1945.3,1944.3,2.29579719]
[1772203631468,1.28521488,1945.2,1944.0,1.97604406]
[1772203631682,1.28521488,1945.2,1944.4,1.011]
[1772203631876,1.28521488,1945.2,1944.2,1.011]
[1772203632290,1.2850167,1945.5,1944.3,0.68849697]
[1772203632478,6.811066,1945.4,1944.4,1.01]
[1772203632792,1.2850167,1945.5,1944.4,1.01]
[1772203633002,1.2850167,1945.5,1944.5,1.01]
[1772203633296,0.73097982,1945.4,1944.5,1.01]
[1772203633511,5.87104664,1945.7,1944.6,1.28561143]
[1772203633662,15.227046,1945.5,1944.6,1.28561143]
[1772203633858,5.13941539,1945.8,1944.6,1.9741084]
[1772203634278,5.87039521,1945.8,1944.6,1.28561143]
[1772203634479,14.596443,1945.6,1944.6,1.28561143]
[1772203634679,0.73097982,1945.6,1944.6,1.28561143]
[1772203634881,0.73097982,1945.4,1944.2,1.28587593]
[1772203635088,2.866,1945.3,1944.3,1.01]
[1772203635280,2.866,1945.3,1944.2,1.01]
[1772203635709,0.73097982,1945.1,1944.1,1.01]
[1772203636013,0.73097982,1944.9,1944.0,0.00153886]
[1772203636184,4.27,1944.8,1944.0,0.00153886]
[1772203636707,0.73097982,1944.9,1944.0,0.00153886]
[1772203636896,18.486176,1944.8,1944.0,0.00153886]
[1772203637083,10.254275,1944.5,1944.0,0.00153886]
[1772203637484,1.97797982,1944.9,1944.0,0.00153886]
[1772203637689,5.244267,1944.6,1944.0,0.00153886]
[1772203637899,1.28554532,1944.7,1944.0,0.00153886]
[1772203638206,2.004072,1944.6,1944.0,0.00153886]
[1772203638393,12.832463,1944.5,1944.0,0.00153886]
[1772203638600,11.832463,1944.5,1944.0,0.00153886]
[1772203638785,3.086287,1944.5,1944.0,0.00153886]
[1772203639508,7.078218,1944.3,1943.2,1.97608022]
[1772203639682,1.28587593,1944.2,1943.2,1.97608022]
[1772203639883,6.54544882,1944.1,1943.2,1.28763325]
[1772203640201,7.336986,1944.0,1943.2,1.28763325]
[1772203640395,2.53387593,1944.2,1943.2,1.28763325]
[1772203641107,1.28587593,1944.2,1943.2,1.28763325]
[1772203641408,5.14307264,1944.4,1943.3,0.68849697]
[1772203641578,5.14307264,1944.4,1943.4,1.008]
[1772203641783,5.14307264,1944.4,1943.5,1.28633907]
[1772203641977,5.14307264,1944.4,1943.5,2.29433907]
[1772203642381,5.14307264,1944.4,1943.5,1.28633907]
[1772203642581,0.001,1944.6,1943.6,0.68849697]
[1772203642913,1.28661776,1944.6,1943.6,0.68849697]
[1772203643082,2.01759758,1944.6,1943.5,1.28633907]
[1772203643279,4.588193,1944.5,1943.5,1.28633907]
[1772203643510,4.588193,1944.5,1943.6,1.007]
[1772203643721,1.28574367,1944.4,1943.2,0.68959697]
[1772203643924,1.28574367,1944.4,1943.2,2.29558505]
[1772203643925,0.73097982,1944.3,1943.2,2.29558505]
[1772203644083,17.432907,1944.2,1943.2,0.0011]
[1772203644285,0.73097982,1944.3,1943.2,1.28762909]
[1772203644286,1.247,1944.1,1943.2,1.28762909]
[1772203644487,0.73097982,1944.0,1943.2,0.0011]
[1772203644692,12.94573282,1943.8,1943.2,0.0011]
[1772203644998,3.72618,1943.6,1943.2,0.0011]
[1772203645197,3.72618,1943.6,1943.0,0.00263886]
[1772203645713,1.28633907,1943.5,1943.0,0.00263886]
[1772203645920,0.73097982,1944.2,1943.0,0.00263886]
[1772203646121,1.28607438,1943.9,1943.0,0.00263886]
[1772203646326,5.47731768,1944.5,1943.0,0.00263886]
[1772203646327,1.28663853,1944.6,1943.0,0.69113583]
[1772203646531,1.28663853,1944.6,1943.1,0.68849697]
[1772203646734,0.73197982,1944.6,1943.3,0.68849697]
[1772203646891,1.28661292,1944.6,1943.3,0.68849697]
[1772203647327,12.645025,1944.5,1943.4,1.008]
[1772203647620,16.888727,1944.3,1943.2,1.008]
[1772203647824,1.28574601,1944.4,1943.4,0.68849697]
[1772203648124,1.28574601,1944.4,1943.4,1.008]
[1772203648298,0.001,1944.6,1943.4,0.68849697]
[1772203648622,5.14284561,1944.5,1943.4,0.68849697]
[1772203649163,6.39384561,1944.5,1943.3,1.28647146]
[1772203649320,30.0,1944.4,1943.3,1.28647146]
[1772203649530,13.019139,1944.3,1943.1,6.15433731]
[1772203649839,1.28587593,1944.2,1943.1,6.15433731]
[1772203650009,1.28587593,1944.2,1943.1,1.28659231]
[1772203650206,2.01685575,1944.2,1943.1,2.29459231]
[1772203650411,1.252,1944.1,1943.1,1.28659231]
[1772203650608,11.078148,1944.0,1943.0,1.28930522]
[1772203650835,4.554871,1944.0,1943.0,2.29730522]
[1772203651039,0.73097982,1943.9,1943.0,1.28930363]
[1772203651315,0.73097982,1943.9,1943.0,1.28930478]
[1772203651540,0.73097982,1943.9,1943.0,1.28930335]
[1772203651843,1.28614054,1943.8,1943.0,0.00263886]
[1772203653236,2.01712036,1943.8,1943.0,0.00263886]
[1772203653540,23.347561,1943.5,1943.3,0.0011]
[1772203653710,2.01738508,1943.4,1943.3,0.0011]
[1772203654351,2.01738508,1943.4,1942.8,0.003]
[1772203654352,1.28640526,1943.4,1942.8,0.003]
[1772203654650,5.14562107,1943.8,1942.8,0.003]
[1772203654651,6.39651456,1943.9,1942.8,0.003]
[1772203654948,1.28759956,1944.0,1942.8,0.69149697]
[1772203655118,0.00153886,1944.0,1942.8,0.69149697]
[1772203655446,1.28756085,1944.0,1942.8,0.69149697]
[1772203655627,1.28756085,1944.0,1942.9,1.69249697]
[1772203655829,0.00153886,1944.0,1943.0,1.97516706]
[1772203656136,0.00153886,1944.0,1943.1,1.004]
[1772203656450,0.00153886,1944.0,1943.2,0.68849697]
[1772203656826,0.00153886,1944.0,1943.2,1.69249697]
[1772203657129,0.00153886,1944.0,1943.3,1.004]
[1772203657337,0.00153886,1944.0,1943.3,1.69249697]
[1772203657842,0.00153886,1944.0,1943.4,2.29040526]
[1772203658265,0.00153886,1944.0,1943.4,1.28640526]
[1772203658562,0.00153886,1944.0,1943.5,1.004]
[1772203659451,0.001,1944.6,1943.6,0.62442139]
[1772203659635,0.001,1944.6,1943.6,1.62842139]
[1772203659836,2.01644248,1944.9,1943.7,1.28620671]
[1772203660136,6.2869363,1945.0,1943.8,0.6856975]
[1772203661234,6.2869363,1945.0,1943.9,1.004]
[1772203661748,6.28689508,1945.0,1944.0,0.6856975]
[1772203661922,6.28689508,1945.0,1944.1,2.28894208]
[1772203662116,6.28690284,1945.0,1944.1,2.97463958]
[1772203662329,5.00153886,1945.0,1944.1,2.97463958]
[1772203662735,6.28690112,1945.0,1944.1,2.97463958]
[1772203663245,6.28690112,1945.0,1944.2,1.003]
[1772203663953,6.28690112,1945.0,1944.3,1.2858098]
[1772203664248,6.28690112,1945.0,1944.2,2.28884491]
[1772203665372,5.00153886,1945.0,1944.3,0.6856975]
[1772203665723,3.20646899,1945.0,1944.3,0.6856975]
[1772203665925,0.001,1944.9,1944.4,1.86274575]
[1772203666143,1.28506432,1945.5,1944.4,1.86274575]
[1772203666451,1.28500355,1945.6,1944.5,0.57299786]
[1772203667721,1.28500355,1945.6,1944.6,1.001]
[1772203668136,1.95156229,1945.7,1944.7,1.28554532]
[1772203668942,1.24753886,1946.0,1944.7,1.28554532]
[1772203668943,0.00153886,1946.0,1944.8,0.56512686]
[1772203669252,0.00153886,1946.0,1945.0,0.56512686]
[1772203669566,0.00153886,1946.0,1945.6,0.56125903]
[1772203669721,0.00153886,1946.0,1945.2,0.56125903]
[1772203669923,0.00153886,1946.0,1945.3,1.002]